fUST/lending_fUST_20240229
["ID","MTS","AMOUNT","RATE_DAILY","PERIOD"]
[315839719,1709208635800,-500.0,0.00020821,2]
[315839720,1709208635810,-79409.60210202,0.000209,2]
[315839721,1709208635825,-300.0,0.000209,9]
[315839722,1709208635834,-177.85411459,0.000209,2]
[315839723,1709208635844,-7959.22935263,0.00020977,2]
[315839724,1709208635856,-155.42206996,0.00020998,2]
[315839725,1709208635865,-1462.74320442,0.00020998,2]
[315839726,1709208635875,-756.20039801,0.00020998,2]
[315839727,1709208635885,-4700.60014085,0.00020998,2]
[315839728,1709208635894,-290.02402273,0.00020998,2]
[315839729,1709208635904,-8007.23444251,0.00020998,2]
[315839730,1709208635913,-1863.17330942,0.00020998,2]
[315839731,1709208635922,-703.08553243,0.00020998,2]
[315839732,1709208635932,-400.75162755,0.00020998,2]
[315839733,1709208635943,-1103.80811997,0.00020998,2]
[315839734,1709208635959,-937.66414941,0.00020998,2]
[315839832,1709208640819,-500.0,0.00020189,2]
[315839834,1709208640831,-500.0,0.00020463,2]
[315839836,1709208640841,-9.60716526,0.00020737,2]
[315839841,1709208640888,-490.39283474,0.00020737,2]
[315839844,1709208640898,-134.30716526,0.0002099,3]
[315839846,1709208640912,-328.96528371,0.0002099,3]
[315839883,1709208641271,-2437.51901791,0.0002099,3]
[315839885,1709208641283,-872.67904065,0.0002099,3]
[315839887,1709208641295,-1333.67007164,0.0002099,3]
[315839888,1709208641306,-2702.84942083,0.0002099,3]
[315839889,1709208641315,-985.94502812,0.00020998,2]
[315839890,1709208641326,-779.52614367,0.00020998,2]
[315839891,1709208641337,-260.659322,0.00020998,2]
[315840195,1709208645813,-709.03,0.00020189,2]
[315840198,1709208645824,-500.7220484,0.00020189,2]
[315840200,1709208645833,-709.03,0.00020463,2]
[315840202,1709208645843,-709.03,0.00020737,2]
[315840205,1709208645853,-1034.92147541,0.00020998,2]
[315840210,1709208645867,-1601.48378721,0.00020998,2]
[315840213,1709208645877,-1014.023952,0.00020999,2]
[315840216,1709208645887,-16775.49226078,0.00021,2]
[315840254,1709208646224,-8582.91213832,0.00021,2]
[315840272,1709208646402,-62944.65625693,0.00021,2]
[315840274,1709208646413,-558.23326879,0.00021,2]
[315840276,1709208646425,-9775.26970077,0.00021,2]
[315840278,1709208646436,-955.92067015,0.00021,2]
[315840885,1709208763281,1129.25922514,0.00020894,30]
[315840886,1709209111535,-1000000.0,0.00024179,30]
[315840887,1709209116796,-500.0,0.00021917,30]
[315840888,1709209116821,-500.0,0.00021917,30]
[315840889,1709209116847,-230.17909844,0.00021917,30]
[315840890,1709209116898,-1209.19710513,0.00025405,30]
[315840891,1709209116931,-150.5,0.0002765,35]
[315840892,1709209116955,-150.5,0.0002765,35]
[315840893,1709209116981,-2256.0,0.0002765,35]
[315840894,1709209117012,-150.5,0.0002765,35]
[315840895,1709209117038,-150.5,0.0002765,35]
[315840896,1709209117063,-2256.0,0.0002765,35]
[315840897,1709209117090,-208.0,0.0002765,35]
[315840898,1709209117119,-150.5,0.0002765,35]
[315840899,1709209117145,-208.0,0.0002765,35]
[315840900,1709209117171,-150.5,0.0002766,35]
[315840901,1709209117196,-150.5,0.0002766,35]
[315840902,1709209117220,-192.4,0.0002766,35]
[315840903,1709209117248,-2256.0,0.0002766,35]
[315840904,1709209117274,-150.5,0.0002766,35]
[315840905,1709209117299,-150.5,0.0002766,35]
[315840906,1709209117455,-2256.0,0.0002766,35]
[315840907,1709209117477,-208.0,0.0002766,35]
[315840908,1709209117499,-236.46,0.0002766,35]
[315840909,1709209117522,-150.5,0.0002766,35]
[315840910,1709209117543,-2256.0,0.0002766,35]
[315840911,1709209117566,-208.0,0.0002766,35]
[315840912,1709209117589,-2260.89,0.0002766,35]
[315840913,1709209117613,-208.0,0.0002766,35]
[315840914,1709209117635,-217.24,0.0002766,35]
[315840915,1709209117658,-150.5,0.0002767,35]
[315840916,1709209117681,-150.5,0.0002767,35]
[315840917,1709209117703,-150.5,0.0002767,35]
[315840918,1709209117725,-2256.0,0.0002767,35]
[315840919,1709209117748,-150.5,0.0002767,35]
[315840920,1709209117770,-150.5,0.0002767,35]
[315840921,1709209117793,-2256.0,0.0002767,35]
[315840922,1709209117816,-208.0,0.0002767,35]
[315840923,1709209117839,-150.5,0.0002767,35]
[315840924,1709209117864,-150.5,0.0002767,35]
[315840925,1709209117887,-2256.0,0.0002767,35]
[315840926,1709209117910,-208.0,0.0002767,35]
[315840927,1709209117932,-2256.0,0.0002767,35]
[315840928,1709209117954,-230.58,0.0002767,35]
[315840929,1709209117977,-208.0,0.0002767,35]
[315840930,1709209118005,-208.0,0.0002767,35]
[315840931,1709209118028,-237.5137744,0.00027919,30]
[315840932,1709209118052,-267.694755,0.00028493,33]
[315840933,1709209118077,-267.694755,0.00028493,39]
[315840934,1709209118100,-267.694755,0.00028493,45]
[315840935,1709209118122,-267.694755,0.00028493,51]
[315840936,1709209118145,-267.694755,0.00028493,57]
[315840937,1709209118169,-267.694755,0.00028493,64]
[315840938,1709209118192,-267.694755,0.00028493,70]
[315840939,1709209118215,-267.694755,0.00028493,76]
[315840940,1709209118239,-267.694755,0.00028493,82]
[315840941,1709209118264,-267.694755,0.00028493,88]
[315840942,1709209118287,-267.694755,0.00028493,95]
[315840943,1709209118310,-267.694755,0.00028493,101]
[315840944,1709209118333,-267.694755,0.00028493,107]
[315840945,1709209118358,-267.694755,0.00028493,113]
[315840946,1709209118380,-267.694755,0.00028493,120]
[315840947,1709209118403,-201.19628456,0.0003,30]
[315840948,1709209118425,-4983.84146506,0.0003,30]
[315840949,1709209118447,-13756.36451862,0.0003,30]
[315840950,1709209118477,-2418.39421027,0.00030772,120]
[315840951,1709209118506,-944075.82221852,0.00033858,30]
[315840952,1709209125191,-1000000.0,0.00024179,30]
[315840953,1709209128608,-1000000.0,0.00033858,30]
[315840954,1709209133132,-1000000.0,0.00033858,30]
[315840955,1709209136580,-1000000.0,0.00024179,30]
[315840956,1709209149768,-1000000.0,0.00024179,30]
[315840957,1709209155011,-1000000.0,0.00033858,30]
[315840958,1709209164481,-1000000.0,0.00033858,30]
[315840959,1709209168968,-253328.90684259,0.00024179,30]
[315840960,1709209168991,-5429.29572874,0.00024179,30]
[315840961,1709209169016,-1144.17264605,0.00024179,30]
[315840962,1709209169041,-151.17772034,0.00024179,30]
[315840963,1709209169063,-498.77194546,0.00024179,30]
[315840964,1709209169086,-3791.83422713,0.00024179,30]
[315840965,1709209169112,-735655.84088969,0.00024179,30]
[315841020,1709209779648,2865.0,0.0002,30]
[315841024,1709209813567,172.05162359,0.000192,6]
[315841034,1709209832680,-280.21092748,0.00017763,2]
[315841036,1709209832690,-545.20726102,0.00017768,2]
[315841120,1709209840082,-329.58326488,0.00017768,2]
[315841121,1709209840092,-3000.0,0.00017892,2]
[315841122,1709209840101,-363.708907,0.00018183,2]
[315841123,1709209840110,-67.50782812,0.00018366,2]
[315841124,1709209840160,-1679.94064809,0.00018366,2]
[315841125,1709209840170,-300.0,0.00018681,2]
[315841126,1709209840179,-6649.06217646,0.00018682,2]
[315841362,1709209843604,10000.0,0.000176,2]
[315841390,1709209844762,-490.1510355,0.00018682,2]
[315841392,1709209844793,-1772.66856104,0.00018682,2]
[315841393,1709209844805,-2388.07837051,0.00018682,2]
[315841394,1709209844817,-6759.42242454,0.00018682,2]
[315841395,1709209844829,-1384.4182,0.00018682,2]
[315841396,1709209844842,-464.78866184,0.00018682,2]
[315841397,1709209844853,-367.733038,0.00018682,2]
[315841398,1709209844865,-251.39133245,0.00018682,2]
[315841399,1709209844881,-404.01179138,0.00018682,2]
[315841400,1709209844933,-3968.27440828,0.00018682,2]
[315841401,1709209844942,-166.666666,0.00019178,2]
[315841402,1709209844952,-500.0,0.00019997,2]
[315841403,1709209844966,-2595.81,0.00019997,2]
[315841404,1709209844975,-500.0,0.00019997,2]
[315841405,1709209844985,-500.0,0.00019997,2]
[315841406,1709209844994,-500.0,0.00019998,2]
[315841407,1709209845003,-500.8056287,0.00019998,2]
[315841408,1709209845014,-500.0,0.00019998,2]
[315841409,1709209845024,-557.94,0.00019998,2]
[315841410,1709209845033,-500.0,0.00019998,2]
[315841411,1709209845043,-497.28656827,0.00019998,2]
[315841412,1709209845052,-500.0,0.00019998,2]
[315841413,1709209845061,-2892.13,0.00019998,2]
[315841420,1709209845189,-646.41,0.00019998,2]
[315841422,1709209845200,-500.0,0.00019998,2]
[315841424,1709209845213,-500.0,0.00019998,2]
[315841426,1709209845226,-500.0,0.00019998,2]
[315841428,1709209845236,-500.0,0.00019998,2]
[315841430,1709209845246,-639.85,0.00019998,2]
[315841432,1709209845256,-500.0,0.00019998,2]
[315841434,1709209845264,-500.0,0.00019998,2]
[315841436,1709209845274,-497.47672875,0.00019998,2]
[315841626,1709209852534,10000.0,0.000176,2]
[315841627,1709209863535,1458.92,0.000176,2]
[315841628,1709210079155,-155.18933098,0.00017766,2]
[315841629,1709210079182,-300.0,0.00017767,2]
[315841630,1709210079207,-544.81066902,0.00017767,2]
[315841631,1709210082808,-1000.0,0.00017767,2]
[315841632,1709210122517,-1000.0,0.0002019,5]
[315841633,1709210127433,-1000.0,0.0002019,5]
[315841634,1709210134262,-1000.0,0.0002019,5]
[315841635,1709210144389,-1000.0,0.0002019,5]
[315841636,1709210145503,-1000.0,0.0002019,5]
[315841637,1709210165082,-1000.0,0.0002019,5]
[315841638,1709210196686,-500.0,0.00021,7]
[315841639,1709210224663,-280.21092748,0.00017766,2]
[315841640,1709210224686,-219.78907252,0.00017767,2]
[315841641,1709210226038,-500.0,0.00017767,2]
[315841642,1709210227066,-309.66849224,0.00017767,2]
[315841643,1709210227091,-190.33150776,0.00017768,2]
[315841705,1709211032648,-280.21092748,0.00017749,2]
[315841706,1709211032658,-2574.26823378,0.00017749,2]
[315841708,1709211032670,-787.1695111,0.0001775,2]
[315841709,1709211032680,-103653.79371726,0.00017768,2]
[315841711,1709211032690,-592.045811,0.00017908,2]
[315841712,1709211032703,-1690.2937372,0.00018185,2]
[315841714,1709211032713,-481.9057648,0.00018185,2]
[315841716,1709211032723,-16722.50092639,0.00018185,2]
[315841740,1709211038526,-1303.24843303,0.00018185,2]
[315841742,1709211038539,-6874.25064058,0.00018185,2]
[315841744,1709211038548,-562.59734141,0.000189,2]
[315841746,1709211038558,-500.0,0.00019178,2]
[315841748,1709211038568,-241.83685928,0.00019178,2]
[315841750,1709211038577,-500.0,0.00019178,2]
[315841752,1709211038589,-343.63079016,0.00019178,2]
[315841754,1709211038598,-640.49,0.00019178,2]
[315841756,1709211038608,-500.0,0.00019178,2]
[315841758,1709211038619,-2771.62,0.00019178,2]
[315841760,1709211038630,-500.0,0.00019178,2]
[315841762,1709211038642,-500.0,0.00019178,2]
[315841764,1709211038652,-198.25,0.00019178,2]
[315841766,1709211038662,-455.45021209,0.00019178,2]
[315841768,1709211038671,-2596.52,0.00019178,2]
[315841770,1709211038681,-500.0,0.00019178,2]
[315841772,1709211038690,-333.87,0.00019178,2]
[315841774,1709211038700,-617.64327125,0.00019178,2]
[315841776,1709211038711,-500.0,0.00019178,2]
[315841778,1709211038721,-571.54287158,0.00019178,2]
[315841780,1709211038731,-500.0,0.00019178,2]
[315841782,1709211038740,-500.0,0.00019178,2]
[315841796,1709211038866,-649.54,0.00019178,2]
[315841797,1709211038876,-170.31542244,0.00019178,2]
[315841798,1709211038886,-500.0,0.00019178,2]
[315841799,1709211038895,-1818.49,0.00019178,2]
[315841800,1709211038906,-500.0,0.00019178,2]
[315841801,1709211038915,-452.72,0.00019178,2]
[315841802,1709211038924,-635.3,0.00019178,2]
[315841803,1709211038934,-500.0,0.00019178,2]
[315841804,1709211038943,-306.0,0.0001937,2]
[315841805,1709211038952,-500.0,0.00019452,2]
[315841806,1709211038963,-640.49,0.00019452,2]
[315841807,1709211038972,-500.0,0.00019452,2]
[315841808,1709211038981,-2771.62,0.00019452,2]
[315841809,1709211038991,-580.06,0.00019452,2]
[315841810,1709211039000,-500.0,0.00019452,2]
[315841811,1709211039009,-2596.52,0.00019452,2]
[315841813,1709211039018,-500.0,0.00019452,2]
[315841814,1709211039027,-500.0,0.00019452,2]
[315841816,1709211039037,-649.54,0.00019452,2]
[315841818,1709211039046,-1818.49,0.00019452,2]
[315841820,1709211039055,-500.0,0.00019452,2]
[315841822,1709211039064,-635.3,0.00019452,2]
[315841824,1709211039073,-500.0,0.00019452,2]
[315841826,1709211039083,-640.49,0.00019726,2]
[315841828,1709211039092,-500.0,0.00019726,2]
[315841830,1709211039101,-2771.62,0.00019726,2]
[315841832,1709211039111,-500.0,0.00019726,2]
[315841834,1709211039120,-2596.52,0.00019726,2]
[315841836,1709211039129,-500.0,0.00019726,2]
[315841838,1709211039140,-500.0,0.00019726,2]
[315841840,1709211039149,-649.54,0.00019726,2]
[315841842,1709211039159,-1818.49,0.00019726,2]
[315841844,1709211039168,-241.79,0.00019726,2]
[315841846,1709211039178,-635.3,0.00019726,2]
[315841848,1709211039187,-500.0,0.00019726,2]
[315841850,1709211039196,-1213.69902085,0.0001985,2]
[315841852,1709211039207,-1303.24843302,0.000199,2]
[315841854,1709211039218,-823.93,0.00019996,2]
[315841856,1709211039227,-500.0,0.00019997,2]
[315841858,1709211039236,-500.0,0.00019997,2]
[315841860,1709211039245,-500.0,0.00019997,2]
[315841862,1709211039255,-500.0,0.00019997,2]
[315841864,1709211039264,-500.0,0.00019997,2]
[315841866,1709211039273,-500.0,0.00019997,2]
[315841868,1709211039283,-500.0,0.00019997,2]
[315841870,1709211039292,-500.0,0.00019997,2]
[315841872,1709211039302,-500.0,0.00019997,2]
[315841874,1709211039311,-502.11613099,0.00019997,2]
[315841876,1709211039321,-500.0,0.00019997,2]
[315841878,1709211039331,-566.80398526,0.00019997,2]
[315841880,1709211039341,-515.10903407,0.00019997,2]
[315841882,1709211039351,-261.028789,0.00019997,2]
[315841884,1709211039361,-565.77740709,0.00019997,2]
[315841886,1709211039371,-414.87738382,0.00019997,2]
[315841888,1709211039381,-500.0,0.00019997,2]
[315841890,1709211039390,-500.0,0.00019997,2]
[315841892,1709211039399,-500.0,0.00019997,2]
[315841894,1709211039408,-500.0,0.00019997,2]
[315841896,1709211039418,-500.0,0.00019997,2]
[315841898,1709211039427,-500.0,0.00019997,2]
[315841900,1709211039436,-640.49,0.0002,2]
[315841902,1709211039445,-500.0,0.0002,2]
[315841904,1709211039456,-2771.62,0.0002,2]
[315841906,1709211039466,-500.0,0.0002,2]
[315841909,1709211039475,-2596.52,0.0002,2]
[315841911,1709211039485,-500.0,0.0002,2]
[315841912,1709211039494,-500.0,0.0002,2]
[315841914,1709211039503,-649.54,0.0002,2]
[315841916,1709211039513,-1818.49,0.0002,2]
[315841918,1709211039522,-155.20176229,0.0002,2]
[315841920,1709211039531,-635.3,0.0002,2]
[315841922,1709211039541,-504.77098394,0.0002,2]
[315841924,1709211039550,-1213.67471576,0.00020059,2]
[315841926,1709211039559,-167.66596435,0.00020188,2]
[315841929,1709211039569,-500.0,0.00020188,2]
[315841930,1709211039578,-500.0,0.00020188,2]
[315841932,1709211039590,-4000.0,0.0002019,5]
[315841934,1709211039600,-613.58187211,0.0002019,3]
[315841936,1709211039610,-316.07662917,0.0002019,2]
[315841938,1709211039622,-155.18933098,0.0002019,2]
[315841940,1709211039632,-5000.0,0.0002019,5]
[315841942,1709211039642,-654.81546065,0.00020238,2]
[315841944,1709211039651,-823.93,0.0002027,2]
[315841946,1709211039661,-588.28,0.00020271,2]
[315841948,1709211039671,-500.0,0.00020271,2]
[315841950,1709211039681,-500.0,0.00020271,2]
[315841952,1709211039692,-500.0,0.00020271,2]
[315841954,1709211039702,-608.94293923,0.00020271,2]
[315841956,1709211039713,-245.11,0.00020271,2]
[315841958,1709211039722,-500.0,0.00020271,2]
[315841960,1709211039731,-640.49,0.00020273,2]
[315841962,1709211039741,-500.0,0.00020273,2]
[315841964,1709211039750,-2771.62,0.00020273,2]
[315841966,1709211039759,-500.0,0.00020273,2]
[315841968,1709211039768,-2596.52,0.00020273,2]
[315841970,1709211039778,-500.0,0.00020273,2]
[315841972,1709211039788,-581.18932669,0.00020273,2]
[315841975,1709211039798,-649.54,0.00020273,2]
[315841976,1709211039807,-1818.49,0.00020273,2]
[315841978,1709211039816,-635.3,0.00020273,2]
[315841980,1709211039825,-823.93,0.00020544,2]
[315841982,1709211039835,-500.0,0.00020545,2]
[315841985,1709211039844,-500.0,0.00020545,2]
[315841986,1709211039853,-500.0,0.00020545,2]
[315841988,1709211039863,-500.0,0.00020545,2]
[315841991,1709211039872,-640.49,0.00020547,2]
[315841992,1709211039881,-500.0,0.00020547,2]
[315841995,1709211039890,-2771.62,0.00020547,2]
[315841997,1709211039899,-483.14,0.00020547,2]
[315841999,1709211039909,-2596.52,0.00020547,2]
[315842000,1709211039918,-500.0,0.00020547,2]
[315842002,1709211039927,-649.54,0.00020547,2]
[315842005,1709211039938,-1818.49,0.00020547,2]
[315842006,1709211039947,-635.3,0.00020547,2]
[315842009,1709211039956,-823.93,0.00020818,2]
[315842011,1709211039965,-500.0,0.00020819,2]
[315842012,1709211039974,-500.0,0.00020819,2]
[315842015,1709211039984,-500.0,0.00020819,2]
[315842016,1709211039993,-500.0,0.00020819,2]
[315842018,1709211040002,-640.49,0.00020821,2]
[315842020,1709211040011,-500.0,0.00020821,2]
[315842023,1709211040021,-2771.62,0.00020821,2]
[315842025,1709211040031,-2596.52,0.00020821,2]
[315842027,1709211040040,-500.0,0.00020821,2]
[315842029,1709211040050,-649.54,0.00020821,2]
[315842030,1709211040059,-1818.49,0.00020821,2]
[315842032,1709211040070,-635.3,0.00020821,2]
[315842035,1709211040080,-8144.06728302,0.00020872,2]
[315842037,1709211040090,-15232.12222041,0.00020998,2]
[315842039,1709211040099,-749.40400927,0.00020998,2]
[315842040,1709211040109,-2111.59779069,0.00020998,2]
[315842042,1709211040118,-527.75777044,0.00020998,2]
[315842044,1709211040127,-5444.35746947,0.00020998,2]
[315842046,1709211040137,-235.10887192,0.00020998,2]
[315842048,1709211040146,-1083.1777813,0.00020998,2]
[315842050,1709211040155,-538.2645322,0.00020999,2]
[315842052,1709211040165,-719.59695589,0.00020999,2]
[315842054,1709211040175,-228.39872146,0.00020999,2]
[315842056,1709211040184,-361.6707009,0.00020999,2]
[315842058,1709211040193,-557.44319736,0.00020999,2]
[315842060,1709211040204,-29739.88750536,0.00021,2]
[315842067,1709211040262,-9003.06981966,0.00021,2]
[315842069,1709211040274,-64809.1186926,0.00021,2]
[315842435,1709211044010,-1120.27149015,0.0002099,3]
[315842438,1709211044030,-4087.3839145,0.0002099,3]
[315842440,1709211044041,-1401.63592553,0.0002099,3]
[315842448,1709211044106,-936.96866982,0.0002099,3]
[315842450,1709211044115,-280.21092748,0.00020999,2]
[315842453,1709211044126,-1126.45119286,0.00021,2]
[315842738,1709211046908,-694.2,0.00020999,2]
[315842745,1709211046955,-7313.03444251,0.00020999,2]
[315842747,1709211046967,-1103.80811997,0.00020999,2]
[315842749,1709211046976,-8120.89111132,0.00021,2]
[315843076,1709211267274,469.48213171,0.000176,2]
[315843077,1709211347379,1000.0,0.00021,14]
[315843078,1709211364985,1000.0,0.00023,49]
[315843120,1709212231948,-1016.96705808,0.00017981,2]
[315843122,1709212231959,-575.08900529,0.00017981,2]
[315843124,1709212231969,-280.21092748,0.00017982,2]
[315843126,1709212231978,-477.645045,0.00017991,2]
[315843128,1709212231991,-23156.0348146,0.00018039,2]
[315843130,1709212232000,-25018.35438293,0.00019,2]
[315843132,1709212232010,-740.96204104,0.00019077,2]
[315843134,1709212232020,-184.95738343,0.00019078,2]
[315843136,1709212232030,-496.66696298,0.00019178,2]
[315843138,1709212232039,-500.0,0.00019178,2]
[315843140,1709212232049,-500.0,0.00019178,2]
[315843142,1709212232058,-500.0,0.00019178,2]
[315843144,1709212232067,-581.88330222,0.00019178,2]
[315843145,1709212232077,-500.0,0.00019178,2]
[315843147,1709212232086,-500.0,0.00019178,2]
[315843149,1709212232094,-235.99829157,0.00019178,2]
[315843151,1709212232103,-237.30620827,0.00019178,2]
[315843153,1709212232115,-500.0,0.00019178,2]
[315843154,1709212232124,-500.40339399,0.00019178,2]
[315843155,1709212232134,-500.0,0.00019178,2]
[315843156,1709212232143,-500.0,0.00019178,2]
[315843157,1709212232152,-394.39468534,0.00019178,2]
[315843158,1709212232161,-170.09476681,0.00019178,2]
[315843159,1709212232172,-500.0,0.00019178,2]
[315843160,1709212232181,-521.05304832,0.00019178,2]
[315843161,1709212232190,-500.0,0.00019178,2]
[315843162,1709212232199,-500.0,0.00019178,2]
[315843163,1709212232208,-500.96588067,0.00019178,2]
[315843164,1709212232218,-268.82581666,0.00019178,2]
[315843165,1709212232227,-500.0,0.00019178,2]
[315843166,1709212232237,-618.35284604,0.00019178,2]
[315843167,1709212232246,-501.71930194,0.00019178,2]
[315843168,1709212232255,-501.16346102,0.00019178,2]
[315843169,1709212232265,-500.0,0.00019178,2]
[315843170,1709212232274,-500.0,0.00019178,2]
[315843171,1709212232283,-630.85496132,0.00019178,2]
[315843172,1709212232292,-500.21853163,0.00019178,2]
[315843173,1709212232302,-500.0,0.00019178,2]
[315843174,1709212232311,-500.0,0.00019178,2]
[315843175,1709212232320,-500.36147118,0.00019178,2]
[315843176,1709212232339,-500.0,0.00019178,2]
[315843177,1709212232349,-500.0,0.00019178,2]
[315843178,1709212232360,-500.0,0.00019178,2]
[315843179,1709212232369,-500.0,0.00019178,2]
[315843180,1709212232379,-500.0,0.00019178,2]
[315843181,1709212232389,-500.0,0.00019178,2]
[315843182,1709212232399,-500.0,0.00019178,2]
[315843183,1709212232408,-500.0,0.00019178,2]
[315843184,1709212232418,-500.0,0.00019178,2]
[315843185,1709212232428,-500.0,0.00019178,2]
[315843186,1709212232438,-500.0,0.00019178,2]
[315843187,1709212232447,-500.33353757,0.00019178,2]
[315843188,1709212232456,-221.786237,0.00019178,2]
[315843189,1709212232466,-500.45076489,0.00019178,2]
[315843190,1709212232476,-500.0,0.00019178,2]
[315843191,1709212232485,-500.0,0.00019178,2]
[315843192,1709212232495,-500.65397138,0.00019178,2]
[315843193,1709212232505,-500.0,0.00019178,2]
[315843194,1709212232515,-500.0,0.00019178,2]
[315843195,1709212232524,-500.0,0.00019178,2]
[315843196,1709212232534,-501.38613503,0.00019178,2]
[315843197,1709212232543,-500.0,0.00019178,2]
[315843198,1709212232553,-577.40085016,0.00019178,2]
[315843199,1709212232562,-500.0,0.00019178,2]
[315843200,1709212232571,-500.0,0.00019178,2]
[315843201,1709212232581,-500.0,0.00019178,2]
[315843202,1709212232591,-516.7435873,0.00019178,2]
[315843203,1709212232602,-500.4335044,0.00019178,2]
[315843204,1709212232613,-500.0,0.00019178,2]
[315843205,1709212232623,-500.0,0.00019178,2]
[315843206,1709212232632,-500.0,0.00019178,2]
[315843207,1709212232642,-500.0,0.00019178,2]
[315843208,1709212232651,-500.0,0.00019178,2]
[315843209,1709212232660,-500.94383318,0.00019178,2]
[315843210,1709212232671,-500.0,0.00019178,2]
[315843211,1709212232681,-516.95,0.00019178,2]
[315843212,1709212232691,-500.0,0.00019178,2]
[315843213,1709212232700,-500.0,0.00019178,2]
[315843215,1709212232710,-236.42030849,0.00019178,2]
[315843216,1709212232720,-500.0,0.00019178,2]
[315843217,1709212232730,-250.3473104,0.00019178,2]
[315843219,1709212232740,-500.0,0.00019178,2]
[315843221,1709212232750,-500.0,0.00019178,2]
[315843223,1709212232759,-615.80805642,0.00019178,2]
[315843225,1709212232769,-500.0,0.00019178,2]
[315843227,1709212232779,-500.0,0.00019178,2]
[315843229,1709212232789,-500.0,0.00019178,2]
[315843231,1709212232799,-501.97829563,0.00019178,2]
[315843233,1709212232808,-500.0,0.00019178,2]
[315843235,1709212232818,-500.0,0.00019178,2]
[315843237,1709212232828,-500.0,0.00019178,2]
[315843239,1709212232837,-503.13338535,0.00019178,2]
[315843241,1709212232847,-500.0,0.00019178,2]
[315843243,1709212232856,-500.0,0.00019178,2]
[315843245,1709212232866,-500.0,0.00019178,2]
[315843247,1709212232875,-500.42749703,0.00019178,2]
[315843249,1709212232886,-500.0,0.00019178,2]
[315843251,1709212232895,-500.56051929,0.00019178,2]
[315843253,1709212232904,-500.0,0.00019178,2]
[315843255,1709212232914,-500.0,0.00019178,2]
[315843257,1709212232925,-500.40566207,0.00019178,2]
[315843259,1709212232935,-500.0,0.00019178,2]
[315843261,1709212232945,-500.0,0.00019178,2]
[315843263,1709212232955,-500.0,0.00019178,2]
[315843265,1709212232967,-590.98664084,0.00019178,2]
[315843266,1709212232976,-500.0,0.00019178,2]
[315843268,1709212232988,-500.0,0.00019178,2]
[315843270,1709212232999,-583.2051723,0.00019178,2]
[315843273,1709212233010,-500.56817065,0.00019178,2]
[315843275,1709212233020,-500.0,0.00019178,2]
[315843277,1709212233030,-502.22775455,0.00019178,2]
[315843279,1709212233042,-641.63622781,0.00019178,2]
[315843280,1709212233053,-500.0,0.00019178,2]
[315843282,1709212233064,-500.0,0.00019178,2]
[315843284,1709212233075,-500.0,0.00019178,2]
[315843286,1709212233086,-500.0,0.00019178,2]
[315843288,1709212233097,-500.0,0.00019178,2]
[315843290,1709212233108,-500.0,0.00019178,2]
[315843292,1709212233118,-500.0,0.00019178,2]
[315843293,1709212233127,-500.0,0.00019178,2]
[315843294,1709212233138,-500.0,0.00019178,2]
[315843296,1709212233148,-500.0,0.00019178,2]
[315843297,1709212233158,-169.50881089,0.00019178,2]
[315843298,1709212233171,-500.46107729,0.00019178,2]
[315843299,1709212233181,-165.02021304,0.00019178,2]
[315843301,1709212233191,-500.0,0.00019178,2]
[315843303,1709212233200,-513.88180142,0.00019178,2]
[315843304,1709212233210,-500.0,0.00019178,2]
[315843305,1709212233222,-500.0,0.00019178,2]